bitfinex/quotes_ETHUSD_20220105
["timestamp","ask_amount","ask_price","bid_price","bid_amount"]
[1641413719962,0.737849,3636.0,3634.9,0.328]
[1641413720160,0.00227369,3635.9,3635.3,1.37477]
[1641413720358,0.737849,3636.0,3635.4,2.42088252]
[1641413720559,0.737849,3636.0,3635.4,2.39304212]
[1641413720758,0.737849,3636.0,3635.5,0.00227369]
[1641413720960,0.737849,3636.0,3635.3,0.60777305]
[1641413721162,0.00227369,3635.9,3635.3,0.60777305]
[1641413721660,0.00170527,3635.8,3634.9,1.37525]
[1641413722063,0.00113684,3635.7,3635.0,0.00284212]
[1641413722760,0.00113684,3635.7,3634.3,0.00682109]
[1641413722961,0.00113684,3635.7,3635.1,0.0108]
[1641413723395,0.00113684,3635.7,3635.2,0.00170527]
[1641413725098,3.06173733,3635.9,3635.3,7.778]
[1641413725297,0.737849,3636.0,3635.3,7.778]
[1641413725298,2.83933733,3635.5,3635.4,0.01298885]
[1641413725498,0.16763733,3635.5,3635.4,3.99269412]
[1641413725698,0.00113685,3635.9,3635.4,0.34269412]
[1641413726099,0.00113685,3635.9,3635.5,0.00113684]
[1641413726299,0.00113685,3635.9,3635.6,1.70283]
[1641413726801,3.685e-05,3635.9,3635.6,1.70283]
[1641413727062,2.52573,3639.4,3637.8,1.07949934]
[1641413727063,5.5048,3639.2,3637.8,1.07949934]
[1641413727261,0.01235514,3639.5,3637.8,1.07949934]
[1641413727864,6.17,3638.6,3637.9,0.328]
[1641413728062,6.17,3638.6,3638.0,0.68698]
[1641413728260,6.17,3638.6,3638.2,3.05]
[1641413728463,6.17,3638.6,3638.3,0.328]
[1641413728660,0.01477901,3638.5,3638.3,0.328]
[1641413728862,0.51901222,3640.4,3638.4,7.95]
[1641413729063,0.51901222,3640.4,3638.5,0.328]
[1641413729263,0.00909477,3640.1,3639.4,0.36104875]
[1641413729465,0.00909477,3640.1,3639.5,0.328]
[1641413729664,0.00852635,3640.0,3639.5,0.36119707]
[1641413729963,0.00795793,3639.9,3639.5,0.328]
[1641413730167,0.00795793,3639.9,3638.9,0.328]
[1641413730366,0.0073895,3639.8,3638.9,0.328]
[1641413730713,0.00682108,3639.7,3639.0,1.1689299]
[1641413731205,0.51901222,3640.4,3639.0,1.1689299]
[1641413731206,0.00625266,3639.6,3639.0,1.50800776]
[1641413731406,0.00625266,3639.6,3639.1,0.328]
[1641413731612,0.51901222,3640.4,3639.2,7.95]
[1641413731813,0.51901222,3640.4,3639.9,1.22381416]
[1641413732013,0.51901222,3640.4,3639.3,0.328]
[1641413732014,0.47355961,3640.4,3639.3,0.32913684]
[1641413732213,0.47355961,3640.4,3640.0,0.00170527]
[1641413732413,0.47355961,3640.4,3639.4,0.01591581]
[1641413732612,0.00112732,3640.1,3639.4,0.01591581]
[1641413732816,0.00112732,3640.1,3639.5,0.00454739]
[1641413733212,0.00112732,3640.1,3639.8,0.38628588]
[1641413733612,0.00112732,3640.1,3639.9,0.00227369]
[1641413733812,0.00112732,3640.1,3639.9,1.15138774]
[1641413734014,0.01239514,3641.9,3639.9,1.15138774]
[1641413734016,0.01269368,3642.5,3640.0,7.96205331]
[1641413734214,0.184884,3642.6,3640.8,0.01218444]
[1641413734457,0.184884,3642.6,3641.0,7.95]
[1641413734656,0.184884,3642.6,3641.7,0.01263415]
[1641413734855,0.00795793,3642.5,3641.7,0.01263415]
[1641413735052,0.00795793,3642.5,3642.0,1.1821358]
[1641413735258,0.00795793,3642.5,3641.7,0.01263415]
[1641413735259,0.0073895,3642.4,3641.7,0.01263415]
[1641413735457,0.0073895,3642.4,3641.8,0.0108]
[1641413735654,0.184884,3642.6,3641.8,0.0108]
[1641413735655,0.00682108,3642.3,3641.8,0.0108]
[1641413736055,0.184884,3642.6,3641.8,0.0108]
[1641413736056,0.00625266,3642.2,3641.8,0.0108]
[1641413736255,0.1818311,3642.6,3642.1,1.16728806]
[1641413736457,0.40554042,3642.3,3641.9,0.00170527]
[1641413737058,0.40554042,3642.3,3641.8,0.0108]
[1641413737059,7.95,3642.2,3641.8,5.27e-06]
[1641413737258,8.01725426,3642.2,3640.8,0.96917933]
[1641413737460,0.06668583,3642.1,3640.8,0.96917933]
[1641413737761,0.06668583,3642.1,3638.8,3.30099991]
[1641413737762,0.53954626,3640.8,3639.0,2.0]
[1641413737963,0.328,3640.7,3638.0,1.0]
[1641413738202,7.95,3640.6,3637.9,0.27639994]
[1641413738403,0.33652635,3640.6,3638.3,0.01210533]
[1641413738604,0.35945391,3640.3,3639.1,1.17213319]
[1641413738805,0.00795793,3640.5,3639.1,1.17213319]
[1641413739006,0.53954626,3640.8,3639.1,1.17213319]
[1641413739007,0.00625266,3640.2,3639.1,1.17213319]
[1641413739208,0.53954626,3640.8,3639.1,1.17213319]
[1641413739209,0.00738951,3640.4,3639.2,0.328]
[1641413739408,0.00568423,3640.1,3639.2,2.45956308]
[1641413739606,0.53954626,3640.8,3639.6,0.00560551]
[1641413739807,0.00909478,3640.7,3640.6,7.96267437]
[1641413740007,0.1818311,3642.6,3640.7,6.8]
[1641413740207,0.1818311,3642.6,3640.6,7.96267437]
[1641413740208,0.1818311,3642.6,3640.6,0.01267437]
[1641413740407,0.00454739,3642.5,3640.8,0.00511581]
[1641413740609,0.00454739,3642.5,3640.6,0.01267437]
[1641413740808,0.43552425,3642.1,3640.7,0.33572994]
[1641413741010,0.43552425,3642.1,3640.7,0.00568423]
[1641413741207,1.38770527,3642.0,3640.8,0.00511581]
[1641413741408,1.38770527,3642.0,3640.5,0.00682108]
[1641413741609,0.00113685,3641.9,3640.5,0.00682108]
[1641413741808,0.00113685,3641.9,3639.8,0.328]
[1641413742055,0.00113685,3641.9,3640.5,0.01266922]
[1641413742256,0.00113685,3641.9,3640.6,0.328]
[1641413742453,0.00113685,3641.9,3641.7,1.402161]
[1641413742854,0.00113685,3641.9,3641.8,8.37113006]
[1641413743053,0.00113685,3641.9,3641.8,4.22113006]
[1641413743360,0.1818311,3642.6,3641.9,7.95]
[1641413743555,0.1818311,3642.6,3641.9,8.25]
[1641413743753,0.00341054,3642.5,3642.0,0.328]
[1641413744159,0.00284211,3642.4,3642.0,0.328]
[1641413744554,0.00227369,3642.3,3642.0,0.328]
[1641413744954,0.1818311,3642.6,3641.7,1.402161]
[1641413744955,0.00170527,3642.2,3641.7,1.402161]
[1641413745158,0.00170527,3642.2,3640.8,1.05890757]
[1641413745356,0.00113684,3642.1,3640.8,0.7184]
[1641413745555,0.3523239,3642.0,3640.9,0.00568423]
[1641413745801,0.00113684,3642.1,3640.9,0.00568423]
[1641413746006,0.00113684,3642.1,3641.7,1.28653145]
[1641413746805,0.00113684,3642.1,3641.8,0.35257722]
[1641413749458,0.1818311,3642.6,3642.0,7.95]
[1641413749657,2.3643,3642.1,3640.0,11.52602145]
[1641413749856,2.3643,3642.1,3641.7,0.01295467]
[1641413750155,2.3643,3642.1,3641.5,2.05804]
[1641413750156,0.0022737,3642.5,3641.8,0.328]
[1641413750358,4.8e-06,3642.6,3641.8,0.628]
[1641413750561,4.8e-06,3642.6,3642.1,0.68603]
[1641413750757,0.0011,3642.5,3642.2,1.69999]
[1641413751160,4.8e-06,3642.6,3642.3,7.95]
[1641413751357,4.8e-06,3642.6,3642.4,0.328]
[1641413751560,4.8e-06,3642.6,3642.4,0.325884]
[1641413751760,0.737849,3644.8,3642.4,0.325884]
[1641413751960,0.737849,3644.8,3642.5,0.68593]
[1641413752159,0.01250531,3644.7,3643.1,0.68594]
[1641413752359,0.01250531,3644.7,3643.7,1.01444936]
[1641413752561,0.01193689,3644.6,3643.7,1.01444936]
[1641413752963,0.01136847,3644.5,3643.7,1.01444936]
[1641413753204,0.44921747,3644.8,3643.7,1.01444936]
[1641413753397,0.44921747,3644.8,3643.8,0.00397897]
[1641413753598,0.00113684,3644.7,3644.6,1.11423843]
[1641413754201,0.00113684,3644.7,3643.8,0.00397897]
[1641413754403,0.00113684,3644.7,3643.9,0.328]
[1641413754603,0.00113684,3644.7,3643.0,15.75]
[1641413754604,0.00204647,3644.7,3643.0,15.75]
[1641413754807,0.00454739,3644.6,3643.0,11.2188561]
[1641413755103,0.00454739,3644.6,3642.6,0.01249846]
[1641413755104,0.00397897,3644.5,3642.3,0.1211628]
[1641413755306,0.38405189,3644.1,3642.8,0.4449294]
[1641413755504,0.38405189,3644.1,3642.4,5.9221]
[1641413755505,0.01295235,3643.3,3642.4,5.82287897]
[1641413755905,0.01295235,3643.3,3642.5,0.00341054]
[1641413756504,0.01295235,3643.3,3642.9,0.36061978]
[1641413756705,0.00511581,3644.0,3642.6,1.35707415]
[1641413757143,0.00454739,3643.9,3642.7,0.0022737]
[1641413757545,0.00397896,3643.8,3642.7,0.0022737]
[1641413757946,0.00341054,3643.7,3642.7,0.0022737]
[1641413758347,0.00284212,3643.6,3642.8,0.328]
[1641413758747,0.00227369,3643.5,3642.9,0.00113685]
[1641413759147,0.00170527,3643.4,3642.9,0.00113685]
[1641413759547,7.95,3643.2,3642.4,5.17915173]
[1641413759947,0.00341054,3643.1,3642.4,5.17915173]
[1641413760347,0.51289302,3643.5,3642.4,5.17915173]
[1641413760348,0.00284212,3643.0,3642.4,5.17915173]
[1641413760798,0.00227369,3642.9,3642.4,5.17915173]
[1641413761197,0.00170527,3642.8,3642.5,0.35641921]
[1641413761401,0.00170527,3642.8,3642.5,1.52996079]
[1641413761602,0.00113684,3642.7,3642.5,1.52996079]
[1641413761800,0.00113684,3642.7,3642.5,2.48383683]
[1641413762000,1.18386894,3643.5,3642.5,2.48383683]
[1641413762201,1.18386894,3643.5,3642.5,0.95387604]
[1641413762400,0.00511581,3643.4,3642.5,0.95387604]
[1641413762800,0.01273291,3643.0,3642.5,0.95387604]
[1641413763200,0.00227369,3642.9,3642.5,0.95387604]
[1641413763603,0.00170527,3642.8,3642.5,0.95387604]
[1641413763803,0.00170527,3642.8,3642.5,0.18307604]
[1641413764003,7.95113684,3642.7,3642.4,5.17915173]
[1641413764213,8.25113684,3642.7,3642.4,5.17915173]
[1641413764468,8.25,3642.7,3642.4,5.17915173]
[1641413764656,7.95,3642.7,3642.4,5.17915173]
[1641413765056,1.18557421,3642.8,3642.4,5.17915173]
[1641413765461,0.00204697,3642.7,3642.4,5.17915173]
[1641413766062,1.63831113,3642.6,3642.4,5.17915173]
[1641413766662,1.18386894,3642.6,3642.4,5.17915173]
[1641413766866,1.78386894,3642.6,3642.4,5.17915173]
[1641413767264,1.18386894,3642.6,3642.4,5.17915173]
[1641413768196,1.18386894,3642.6,3642.5,1.0380089]
[1641413768397,0.00204697,3642.7,3642.4,5.17915173]
[1641413769200,0.00204697,3642.7,3642.5,0.328]
[1641413769402,1.18386894,3643.5,3642.6,7.95]
[1641413769597,6.17,3643.7,3642.7,15.46915502]
[1641413769598,0.06306894,3643.7,3642.7,15.46915502]
[1641413769797,0.00397897,3643.4,3642.8,0.328]
[1641413769998,0.00397897,3643.4,3642.9,5.8018]
[1641413770199,1.57849193,3643.8,3643.1,7.95]
[1641413770398,0.08,3644.6,3643.2,7.95]
[1641413770600,0.00227369,3643.7,3643.2,1.0]
[1641413770798,0.00227369,3643.7,3643.0,2.66179313]
[1641413770998,0.00170527,3643.6,3643.0,2.66179313]
[1641413771198,0.00170527,3643.6,3643.1,0.00113685]
[1641413771398,0.00113684,3643.5,3643.1,0.00113685]
[1641413771602,7.96254424,3643.2,3643.1,0.00113685]
[1641413771804,8.40865429,3643.2,3643.1,0.00113685]
[1641413772055,7.91254424,3643.2,3643.1,0.00113685]
[1641413772456,8.21254424,3643.2,3643.1,0.00113685]
[1641413772854,7.91254424,3643.2,3643.1,0.00113685]
[1641413773256,7.91254424,3643.2,3643.1,3.685e-05]
[1641413773458,7.95,3643.1,3641.9,2.66008786]
[1641413773657,0.0121911,3642.4,3641.9,2.66008786]
[1641413773855,8.34125084,3642.1,3642.0,0.00625266]
[1641413774055,1.3730228,3642.7,3642.0,2.66634052]
[1641413774356,0.13819997,3644.0,3642.1,0.00568424]
[1641413774756,0.00397896,3643.8,3642.1,0.00568424]
[1641413774956,0.41026832,3643.5,3642.6,1.10460934]
[1641413775362,0.41026832,3643.5,3642.7,0.0022737]
[1641413775363,0.00170527,3643.4,3642.7,0.0022737]
[1641413775801,0.00113685,3643.3,3642.7,0.0022737]
[1641413776006,0.00113685,3643.3,3642.9,0.68605]
[1641413776201,0.00227369,3643.5,3642.9,0.68605]
[1641413776604,0.00170527,3643.4,3642.8,0.01069315]
[1641413776806,0.39378169,3643.3,3642.8,0.01069315]
[1641413777006,0.00113685,3643.3,3642.9,0.00113685]
[1641413778009,0.33867971,3643.2,3642.9,0.00113685]
[1641413778209,0.6863243,3643.2,3642.9,0.00113685]
[1641413779108,0.6863243,3643.2,3642.1,2.66008786]
[1641413779109,0.3,3643.1,3642.1,2.66008786]
[1641413779309,2.0595024,3642.7,3642.1,2.66008786]
[1641413779554,2.09311096,3642.7,3642.2,0.00397896]
[1641413779757,2.0595024,3642.7,3642.2,0.00397896]
[1641413779959,0.00113685,3643.1,3642.3,0.3755341]
[1641413780159,0.00113685,3643.1,3642.2,0.00397896]
[1641413780362,1.34840811,3642.7,3642.4,0.00284212]
[1641413781058,1.34840811,3642.7,3642.0,0.00511581]
[1641413781460,0.00113685,3643.1,3642.4,1.39617183]
[1641413781660,0.6864077,3642.7,3642.4,1.39617183]
[1641413781862,0.01387674,3643.1,3642.4,1.39617183]
[1641413781863,0.01387674,3643.1,3642.5,0.00227369]
[1641413782265,1.39987674,3643.1,3642.5,0.00227369]
[1641413782463,2.73440811,3643.0,3642.5,0.00227369]
[1641413782662,0.37411745,3642.7,3642.5,0.00227369]
[1641413783064,0.67411745,3642.7,3642.5,0.00227369]
[1641413783302,1.36058255,3642.7,3642.5,0.00227369]
[1641413783503,1.66058255,3642.7,3642.5,0.00227369]
[1641413783702,1.66058255,3642.7,3642.5,7.369e-05]
[1641413783703,0.31230834,3642.6,3642.5,7.369e-05]
[1641413783904,1.17802873,3642.3,3641.3,3.54481613]
[1641413784113,1.17802873,3642.3,3639.3,0.30114688]
[1641413784114,0.12389568,3641.3,3640.9,2.75420542]
[1641413784304,0.12389568,3641.3,3640.4,5.92094056]
[1641413784305,0.01241824,3641.0,3640.4,5.09624775]
[1641413784503,0.01241824,3641.0,3640.4,3.83797643]
[1641413784504,7.96286952,3640.5,3640.4,3.83797643]
[1641413784702,7.96286952,3640.5,3640.4,7.643e-05]
[1641413784907,8.26286952,3640.5,3640.4,0.01193689]
[1641413785103,8.93240153,3640.5,3640.4,0.01193689]
[1641413785303,0.68703,3640.2,3639.8,4.744e-05]
[1641413785503,1.40526939,3640.2,3639.8,4.744e-05]
[1641413785703,1.40526939,3640.2,3639.3,0.28863153]
[1641413785704,7.95,3640.0,3639.3,0.28863153]
[1641413785903,8.278,3640.0,3639.3,0.28863153]
[1641413786103,24.628,3640.0,3639.4,0.00227369]
[1641413786304,0.35220679,3639.9,3639.3,0.28863153]
[1641413786605,0.35220679,3639.9,3639.1,3.24619822]
[1641413786606,7.95,3639.5,3639.1,3.24619822]
[1641413786811,7.95,3639.3,3638.5,3.398e-05]
[1641413787055,7.96276766,3638.6,3638.5,3.398e-05]
[1641413787256,7.96276766,3638.6,3635.8,3.8692]
[1641413787257,0.01276766,3638.6,3635.8,3.8692]
[1641413787458,0.68725,3639.1,3638.5,0.00511581]
[1641413787656,0.00227369,3639.8,3638.5,0.00511581]
[1641413787857,0.00227369,3639.8,3639.1,1.42495821]
[1641413788059,6.15083621,3640.4,3639.1,1.00058019]
[1641413788060,0.00170527,3639.7,3639.1,1.00058019]
[1641413788260,0.00170527,3639.7,3639.2,0.00113685]
[1641413788462,0.00113685,3639.6,3639.2,0.00113685]
[1641413788760,3.18387748,3640.4,3639.2,0.00113685]
[1641413788761,1.79787748,3639.7,3639.2,0.00113685]
[1641413789161,0.00113685,3639.6,3639.2,0.00113685]
[1641413789562,0.00113685,3639.6,3637.6,3.37381]
[1641413789563,0.00113685,3639.6,3638.2,0.01241329]
[1641413789964,0.00113685,3639.6,3638.3,0.00625266]
[1641413790165,0.00113685,3639.6,3638.5,0.6869]
[1641413790563,0.00113685,3639.6,3638.6,0.00454739]
[1641413790804,0.00113685,3639.6,3639.3,1.10955897]
[1641413791209,0.00113685,3639.6,3639.4,0.33707807]
[1641413792211,0.00113685,3639.6,3639.5,7.5]
[1641413792412,0.00113685,3639.6,3639.4,0.33707807]
[1641413795357,3.685e-05,3639.6,3639.5,8.278]
[1641413795558,1.31344299,3640.8,3639.6,7.95]
[1641413795762,1.31344299,3640.8,3640.1,8.63644]
[1641413795957,1.79787748,3641.1,3640.4,7.95]
[1641413796159,4.9508,3641.5,3640.6,7.95]
[1641413796359,0.53925999,3641.8,3640.9,8.31202556]
[1641413796561,4.51957639,3642.4,3641.6,0.01293854]
[1641413796759,4.51957639,3642.4,3641.7,0.328]
[1641413797159,4.51957639,3642.4,3642.0,0.68615]
[1641413797359,4.51957639,3642.4,3642.1,1.49408367]
[1641413797560,3.53119435,3642.4,3642.2,0.44871758]
[1641413797763,0.82362435,3642.5,3642.2,0.77671758]
[1641413797960,3.53119435,3643.7,3642.2,0.77671758]
[1641413798207,0.00966319,3642.4,3642.2,0.328]
[1641413798408,0.00966319,3642.4,3642.3,0.35968564]
[1641413798608,0.82336312,3643.6,3642.7,1.0573636]
[1641413798810,0.82336312,3643.6,3642.2,0.328]
[1641413799009,0.01285753,3643.3,3641.1,4.65214992]
[1641413799208,0.0124176,3642.5,3641.1,4.65214992]
[1641413799408,0.68648,3643.2,3641.1,5.33854992]
[1641413799409,0.01421058,3643.2,3641.1,5.33854992]
[1641413799616,0.00966319,3642.4,3641.1,5.33854992]
[1641413799809,0.00966319,3642.4,3640.7,1.37279]
[1641413799810,0.36590826,3641.2,3640.7,1.37279]
[1641413800011,7.95,3641.3,3639.7,2.44774306]
[1641413800209,0.00341054,3641.1,3640.6,1.0]
[1641413800416,2.99977912,3642.3,3640.6,1.0]
[1641413800417,0.00397896,3641.2,3640.6,1.0]
[1641413800613,2.2751941,3642.4,3640.6,1.0]
[1641413800614,0.00284212,3641.0,3640.6,1.0]
[1641413800809,0.00341054,3641.1,3640.7,1.05696393]
[1641413801009,0.00227369,3640.9,3640.7,1.05696393]
[1641413801212,0.00284212,3641.0,3640.6,0.34518201]
[1641413801411,2.0,3642.0,3640.6,0.34518201]
[1641413801412,0.00170527,3640.8,3640.6,0.34518201]
[1641413801613,0.00227369,3640.9,3640.6,0.34518201]
[1641413801816,0.00113685,3640.7,3640.6,0.34518201]
[1641413802057,0.00170527,3640.8,3640.6,0.34518201]
[1641413802258,0.00113685,3640.7,3640.6,0.34518201]
[1641413802454,3.53119435,3642.6,3640.7,7.95]
[1641413802653,3.53119435,3642.6,3641.2,1.38551549]
[1641413802654,0.00795792,3642.1,3641.2,1.38551549]
[1641413802859,0.00795792,3642.1,3641.5,0.3430623]
[1641413803161,0.0073895,3642.0,3641.5,1.0291923]
[1641413803357,3.53119435,3643.3,3641.7,5.45]
[1641413803557,3.53119435,3643.3,3642.5,1.04506364]
[1641413803759,0.00682108,3643.2,3641.8,0.00113685]
[1641413804160,0.00682108,3643.2,3641.6,0.36933052]
[1641413804161,0.00625266,3643.1,3641.7,0.00170527]
[1641413804558,0.01279074,3643.7,3642.6,0.36681573]
[1641413804559,0.00568424,3643.0,3642.6,0.36681573]
[1641413804760,0.00568424,3643.0,3642.7,1.04419487]
[1641413804960,0.00511581,3642.9,3642.7,1.04419487]
[1641413805260,0.01279074,3643.7,3642.7,1.04419487]
[1641413805261,0.00454739,3642.8,3642.7,1.04419487]
[1641413806501,0.00454739,3642.8,3642.7,8.99419487]
[1641413807403,0.00454739,3642.8,3642.7,1.04419487]
[1641413808309,0.00454739,3642.8,3642.7,8.99419487]
[1641413808505,0.00454739,3642.8,3642.7,7.95]
[1641413808506,4.739e-05,3642.8,3642.7,7.95]
[1641413809109,1.30466824,3644.0,3642.8,7.95]
[1641413809307,1.30466824,3644.0,3643.4,0.68592]
[1641413809550,1.31148932,3644.0,3643.5,1.3693101]
[1641413809749,1.31148932,3644.0,3643.5,1.73721061]
[1641413810353,0.00682108,3644.0,3642.5,1.37206]
[1641413810555,0.00682108,3644.0,3642.3,1.0]
[1641413810556,0.00682108,3644.0,3641.8,0.3430714]
[1641413810751,0.00682108,3644.0,3642.6,0.00113685]
[1641413810954,0.01206262,3643.7,3641.9,0.00511581]
[1641413811151,0.01206262,3643.7,3641.7,6.20333973]
[1641413811152,0.01206262,3643.7,3642.0,0.00454739]
[1641413811351,0.01206262,3643.7,3641.7,6.20333973]
[1641413811352,0.00454739,3643.6,3642.2,1.37467841]
[1641413811557,0.3,3643.9,3642.2,1.37467841]
[1641413811755,0.3,3643.9,3641.2,7.20333973]
[1641413811756,0.328,3643.8,3642.3,0.00284212]
[1641413811955,0.328,3643.8,3642.3,0.00738951]
[1641413811956,0.82913684,3643.8,3642.3,0.00738951]
[1641413812155,15.75,3643.6,3641.4,0.01250532]
[1641413812358,0.45181634,3642.2,3641.4,0.01250532]
[1641413812555,1.46636634,3642.2,3641.3,0.01307374]
[1641413812756,0.77981634,3642.2,3641.3,0.01307374]
[1641413812957,0.01245649,3642.1,3641.3,7.374e-05]
[1641413813206,0.328,3642.0,3641.3,7.374e-05]
[1641413813507,0.6868217,3641.0,3640.7,0.00348428]
[1641413813706,0.3189,3640.9,3640.7,0.00348428]
[1641413813907,0.3189,3640.9,3640.6,6.18182401]
[1641413814110,0.32003684,3640.9,3640.0,0.33160386]
[1641413814310,0.30318517,3640.9,3640.0,0.33160386]
[1641413814510,0.00113684,3640.9,3640.2,0.68654]
[1641413814910,0.00113684,3640.9,3640.3,0.0022737]
[1641413815309,0.00113684,3640.9,3640.5,1.14678366]
[1641413815509,0.00113684,3640.9,3640.7,0.43962891]
[1641413815709,0.00113684,3640.9,3640.5,1.14678366]
[1641413815911,0.00113684,3640.9,3640.3,0.0022737]
[1641413816510,0.00113684,3640.9,3639.2,0.00852636]
[1641413816711,0.00113684,3640.9,3637.2,0.38570281]
[1641413816712,0.36448877,3638.5,3637.2,0.38570281]
[1641413816954,0.36448877,3638.5,3635.9,3.50423989]
[1641413816955,0.328,3638.4,3637.5,5.4976]
[1641413817155,2.0,3638.3,3637.5,5.1243]
[1641413817354,0.328,3638.3,3637.7,0.3733328]
[1641413817555,1.928,3638.3,3637.7,0.3733328]
[1641413817755,7.95,3638.2,3637.7,0.00799072]
[1641413817956,0.71778539,3638.0,3637.7,0.00799072]
[1641413818154,0.328,3638.1,3637.5,6.31249972]
[1641413818155,1.7028465,3637.9,3637.5,6.31249972]
[1641413818356,0.328,3637.9,3637.5,5.1243]
[1641413818555,0.328,3637.9,3637.6,0.00113685]
[1641413818759,1.7028,3637.9,3637.6,0.00113685]
[1641413818954,0.6872879,3637.8,3637.6,0.00113685]
[1641413819157,1.0152879,3637.8,3637.6,0.00113685]
[1641413819757,0.6872879,3637.8,3637.6,0.00113685]
[1641413819959,0.03788726,3637.8,3637.6,0.00113685]
[1641413820258,0.32913684,3638.0,3637.6,0.00113685]
[1641413820705,0.62913684,3638.0,3637.6,0.00113685]
[1641413820921,2.0621341,3637.8,3637.6,0.00113685]
[1641413821146,2.0621341,3637.8,3637.1,0.737849]
[1641413821147,0.6874807,3637.5,3637.1,0.737849]
[1641413821418,0.6874807,3637.5,3635.1,2.0]
[1641413821419,0.01214464,3637.2,3635.1,2.0]
[1641413821613,0.01214464,3637.2,3634.9,0.737849]
[1641413821614,0.328,3637.1,3634.9,0.737849]
[1641413821812,0.68775,3636.2,3635.2,0.01023161]
[1641413822010,0.328,3636.1,3635.2,0.01023161]
[1641413822408,0.328,3636.1,3635.0,0.42674001]
[1641413822409,0.328,3636.1,3635.1,0.01080004]
[1641413822610,0.328,3636.1,3635.3,0.01071504]
[1641413823009,2.0630903,3636.8,3635.4,0.00909477]
[1641413823211,0.6875761,3636.5,3635.4,0.00909477]
[1641413823610,2.09621275,3636.8,3635.4,0.00909477]
[1641413823812,0.328,3636.7,3635.4,0.00909477]
[1641413824213,3.39030706,3637.5,3635.4,0.00909477]
[1641413824214,2.70277706,3637.5,3635.4,0.00909477]
[1641413824768,0.00170528,3637.3,3635.4,0.00909477]
[1641413825161,0.00113685,3637.2,3636.3,0.38488017]
[1641413825364,0.00113685,3637.2,3635.4,0.69647477]
[1641413825662,0.00113685,3637.2,3635.5,0.00852634]
[1641413825663,0.328,3637.2,3635.5,0.00852634]
[1641413826063,0.328,3637.2,3635.3,0.01071504]
[1641413826064,0.928,3637.2,3635.4,0.00909477]
[1641413826265,0.6876189,3636.4,3635.4,0.00909477]
[1641413826464,0.328,3636.3,3635.4,0.00909477]
[1641413826667,0.328,3636.3,3635.4,6.17909477]
[1641413827062,0.328,3636.3,3635.5,0.00852634]
[1641413827464,0.328,3636.3,3636.2,0.32008585]
[1641413827665,0.82492354,3636.8,3636.2,0.32008585]
[1641413827865,0.82492354,3636.8,3636.2,0.32463323]
[1641413828066,0.82492354,3636.8,3636.3,0.00397896]
[1641413828300,0.82492354,3636.8,3636.3,0.01469149]
[1641413828509,0.0022737,3637.4,3636.4,7.95]
[1641413828705,1.30466824,3637.9,3636.8,0.68701]
[1641413828903,1.30466824,3637.9,3636.5,8.2934979]
[1641413828904,1.30466824,3637.9,3636.5,8.28311581]
[1641413829105,0.0022737,3637.8,3636.9,0.00284212]
[1641413829310,0.0022737,3637.8,3636.6,0.00454739]
[1641413829505,0.00170527,3637.7,3636.6,0.00454739]
[1641413829905,0.00113685,3637.6,3636.4,0.00568423]
[1641413830305,0.34044255,3637.7,3636.7,0.00083577]
[1641413830508,0.34044255,3637.7,3637.4,3.577e-05]
[1641413830708,0.00113685,3637.6,3637.4,3.577e-05]
[1641413831306,1.37604545,3637.6,3637.4,3.577e-05]
[1641413831513,1.37604545,3637.6,3636.8,0.00341054]
[1641413831514,0.82477874,3637.2,3636.8,0.00341054]
[1641413831705,1.37604545,3637.6,3636.8,0.00341054]
[1641413831964,0.00113685,3637.6,3636.8,0.00341054]
[1641413832960,3.685e-05,3637.6,3636.9,1.39528064]
[1641413833161,9.899e-05,3638.3,3637.5,0.01249922]
[1641413833360,1.73955766,3638.6,3637.5,0.01249922]
[1641413833361,0.30945665,3638.6,3637.7,7.95]
[1641413833561,0.00284212,3638.1,3637.8,8.278]
[1641413833960,0.00227369,3638.0,3637.8,8.278]
[1641413834161,0.00227369,3638.0,3637.9,8.63692]
[1641413834361,0.82428824,3639.6,3637.9,8.96492]
[1641413835161,0.82428824,3639.6,3638.0,0.68685]
[1641413835363,0.82428824,3639.6,3638.8,1.37337]
[1641413835563,0.82428824,3639.6,3638.9,0.328]
[1641413835809,0.01193689,3639.7,3638.9,0.328]
[1641413836208,1.386,3641.3,3638.9,0.328]
[1641413836209,0.01136847,3639.6,3638.9,0.328]
[1641413836409,0.01136847,3639.6,3639.0,1.72945778]
[1641413836610,0.01080004,3639.5,3637.7,2.06003]
[1641413836815,0.01080004,3639.5,3637.9,8.278]
[1641413837116,0.01023162,3639.4,3637.9,8.278]
[1641413837517,0.0096632,3639.3,3638.2,1.23214352]
[1641413837715,0.0096632,3639.3,3638.8,0.4206673]
[1641413837914,0.01234651,3639.8,3638.8,0.4206673]
[1641413837915,0.00909477,3639.2,3638.8,0.4206673]
[1641413838314,0.00852635,3639.1,3638.2,1.23214352]
[1641413838713,0.6870528,3639.4,3638.2,1.23214352]
[1641413838714,0.00795793,3639.0,3638.2,1.23214352]
[1641413838915,0.00795793,3639.0,3638.9,1.21081519]
[1641413839116,3.48392497,3640.4,3638.1,0.01214466]
[1641413839117,0.08,3639.9,3638.1,0.01214466]
[1641413839317,0.08,3639.9,3639.5,0.4314371]
[1641413839553,0.08,3639.9,3638.1,0.01214466]
[1641413839856,0.08,3639.9,3638.2,0.01070516]
[1641413840052,0.08,3639.9,3639.5,1.04924663]
[1641413840956,0.08,3639.9,3639.6,0.34880736]
[1641413841956,0.82407546,3640.5,3639.6,0.34880736]
[1641413841957,0.82407546,3640.5,3639.7,7.95]
[1641413842156,3.53119435,3641.5,3639.7,7.95]
[1641413842361,3.53119435,3641.5,3641.1,1.41377445]
[1641413842759,3.53119435,3641.5,3641.2,0.32796224]
[1641413843410,0.98849259,3642.0,3641.8,1.32130433]
[1641413843615,0.98849259,3642.0,3641.2,0.32796224]
[1641413843810,0.02444221,3641.9,3640.9,0.328]
[1641413844011,0.02444221,3641.9,3641.8,0.38248662]
[1641413844213,0.02387378,3641.8,3640.4,0.328]
[1641413844412,0.02387378,3641.8,3639.7,1.0]
[1641413844613,0.02330536,3641.7,3640.0,1.28820102]
[1641413844915,0.02273694,3641.6,3640.0,1.28820102]
[1641413845110,0.02273694,3641.6,3641.4,0.37117962]
[1641413845310,7.17216851,3641.5,3641.4,0.37117962]
[1641413845510,0.82400159,3640.8,3640.1,0.01069972]
[1641413845712,7.77216851,3641.5,3640.1,0.01069972]
[1641413845713,0.82406858,3640.5,3640.1,0.01069972]
[1641413845910,0.01762113,3640.7,3640.1,0.01069972]
[1641413846111,20.53873887,3641.4,3640.1,0.01069972]
[1641413846112,0.01591586,3640.4,3640.1,0.01069972]